bitfinex/quotes_BTCUSD_20251024
["timestamp","ask_amount","ask_price","bid_price","bid_amount"]
[1761269591066,0.20845453,110430.0,110420.0,0.27594561]
[1761269591738,0.02734433,110430.0,110420.0,0.27594561]
[1761269593107,0.02734433,110430.0,110420.0,0.58782448]
[1761269593424,0.02734433,110430.0,110420.0,0.89970335]
[1761269593666,0.02734433,110430.0,110420.0,0.58782448]
[1761269594150,0.18698433,110430.0,110420.0,0.58782448]
[1761269595215,0.02734433,110430.0,110420.0,0.58782448]
[1761269596267,0.02734433,110430.0,110420.0,0.27594561]
[1761269596488,0.02734433,110430.0,110420.0,0.58782448]
[1761269597594,0.20845453,110430.0,110420.0,0.58782448]
[1761269597883,0.02734433,110430.0,110420.0,0.58782448]
[1761269603837,0.02734433,110430.0,110420.0,0.27594561]
[1761269604088,0.20845453,110430.0,110420.0,0.27594561]
[1761269604508,0.02734433,110430.0,110420.0,0.27594561]
[1761269604717,0.20845453,110430.0,110420.0,0.27594561]
[1761269605437,0.5203334,110430.0,110420.0,0.09481901]
[1761269605853,0.20845453,110430.0,110420.0,0.09481901]
[1761269610444,0.5203334,110430.0,110420.0,0.09481901]
[1761269612841,0.20845453,110430.0,110420.0,0.09481901]
[1761269614314,0.52044242,110430.0,110420.0,0.005]
[1761269614688,0.60044242,110430.0,110420.0,0.005]
[1761269615099,0.60044242,110430.0,110420.0,0.004]
[1761269616499,0.28845453,110430.0,110420.0,0.004]
[1761269617107,0.65840242,110430.0,110420.0,0.004]
[1761269619418,1.31039031,110430.0,110420.0,0.004]
[1761269619635,1.40493942,110430.0,110420.0,0.004]
[1761269622015,1.40593942,110430.0,110420.0,0.004]
[1761269622443,1.40493942,110430.0,110420.0,0.004]
[1761269622664,1.40593942,110430.0,110420.0,0.004]
[1761269623393,1.40493942,110430.0,110420.0,0.004]
[1761269623816,1.40693942,110430.0,110420.0,0.004]
[1761269624448,1.47581976,110430.0,110420.0,0.004]
[1761269625085,1.47381976,110430.0,110420.0,0.004]
[1761269625266,1.47581976,110430.0,110420.0,0.004]
[1761269626374,1.44847543,110430.0,110420.0,0.004]
[1761269626583,1.47568741,110430.0,110420.0,0.004]
[1761269629800,1.26537952,110430.0,110420.0,0.004]
[1761269630010,1.32337952,110430.0,110420.0,0.004]
[1761269632071,1.10573952,110430.0,110420.0,0.004]
[1761269632505,1.32337952,110430.0,110420.0,0.004]
[1761269634465,1.63536741,110430.0,110420.0,0.004]
[1761269643485,1.66779099,110430.0,110420.0,0.004]
[1761269643674,1.60979099,110430.0,110420.0,0.004]
[1761269643875,1.66779099,110430.0,110420.0,0.004]
[1761269645624,1.45015099,110430.0,110420.0,0.004]
[1761269645824,1.66779099,110430.0,110420.0,0.004]
[1761269646460,1.45015099,110430.0,110420.0,0.004]
[1761269646605,1.66779099,110430.0,110420.0,0.004]
[1761269650062,1.75761,110430.0,110420.0,0.004]
[1761269650272,1.66779099,110430.0,110420.0,0.004]
[1761269650642,1.73592523,110430.0,110420.0,0.004]
[1761269651664,0.18117146,110400.0,110370.0,0.14594316]
[1761269651934,0.15964,110390.0,110380.0,0.27100968]
[1761269652093,0.15964,110390.0,110380.0,0.2982225]
[1761269653070,0.15964,110390.0,110380.0,0.30728211]
[1761269653775,0.15964,110390.0,110380.0,0.30828211]
[1761269654574,0.15964,110390.0,110380.0,0.31028211]
[1761269655382,0.15964,110390.0,110380.0,0.28306929]
[1761269655804,0.15964,110390.0,110380.0,0.28206929]
[1761269656014,0.15964,110390.0,110380.0,0.28306929]
[1761269656622,0.15964,110390.0,110380.0,0.28206929]
[1761269656831,0.15964,110390.0,110380.0,0.28106929]
[1761269657041,0.15964,110390.0,110380.0,0.28206929]
[1761269657251,0.15964,110390.0,110380.0,0.28106929]
[1761269657430,0.34081583,110390.0,110380.0,0.28106929]
[1761269657677,0.34081583,110390.0,110380.0,0.28206929]
[1761269657888,0.15964,110390.0,110380.0,0.28206929]
[1761269665522,0.67093784,110390.0,110380.0,0.002]
[1761269665741,0.65280372,110390.0,110380.0,0.002]
[1761269665951,0.68002012,110390.0,110380.0,0.002]
[1761269666159,0.68920532,110390.0,110380.0,0.002]
[1761269669229,0.70869676,110390.0,110380.0,0.002]
[1761269670085,0.70869676,110390.0,110380.0,0.001]
[1761269670508,0.18119224,110380.0,110370.0,0.004]
[1761269670724,0.51131425,110380.0,110370.0,0.00413283]
[1761269670932,0.55118013,110380.0,110370.0,0.00413283]
[1761269671363,0.57839922,110380.0,110370.0,0.00413283]
[1761269672186,0.57839922,110380.0,110370.0,0.00513283]
[1761269672836,0.89104675,110380.0,110370.0,0.00513283]
[1761269673072,0.08521909,110380.0,110370.0,0.18734149]
[1761269673283,0.59686316,110380.0,110370.0,0.00613283]
[1761269673498,0.57872904,110380.0,110370.0,0.00613283]
[1761269674367,0.44266033,110380.0,110370.0,0.00613283]
[1761269675353,0.44266033,110380.0,110370.0,0.18734149]
[1761269675559,0.44266033,110380.0,110370.0,0.4996592]
[1761269675560,0.15964,110380.0,110370.0,0.4996592]
[1761269676433,0.15964,110380.0,110370.0,0.18734149]
[1761269680552,0.34083224,110380.0,110370.0,0.18734149]
[1761269680764,0.65314995,110380.0,110370.0,0.00613283]
[1761269683291,0.96546766,110380.0,110370.0,0.00613283]
[1761269683935,0.65314995,110380.0,110370.0,0.00613283]
[1761269684212,0.96546766,110380.0,110370.0,0.00613283]
[1761269684924,0.65314995,110380.0,110370.0,0.00613283]
[1761269686175,0.96546766,110380.0,110370.0,0.00613283]
[1761269688454,0.65314995,110380.0,110370.0,0.00613283]
[1761269693384,0.67259854,110380.0,110370.0,0.00613283]
[1761269694074,0.65314995,110380.0,110370.0,0.00613283]
[1761269694272,0.67259857,110380.0,110370.0,0.00613283]
[1761269694480,0.67259857,110380.0,110370.0,0.00856916]
[1761269696282,0.98491628,110380.0,110370.0,0.00856916]
[1761269697094,0.67259857,110380.0,110370.0,0.00856916]
[1761269698619,0.98491628,110380.0,110370.0,0.00856916]
[1761269701334,0.67259857,110380.0,110370.0,0.00856916]
[1761269702408,0.6726318,110380.0,110370.0,0.00856916]
[1761269704031,0.36031409,110380.0,110370.0,0.00856916]
[1761269704977,0.6726318,110380.0,110370.0,0.00856916]
[1761269705928,0.17912185,110380.0,110370.0,0.18977782]
[1761269706143,0.17912185,110380.0,110370.0,0.00856916]
[1761269706356,0.6726318,110380.0,110370.0,0.00856916]
[1761269706793,0.6726318,110380.0,110370.0,0.18977782]
[1761269710638,0.6726318,110380.0,110370.0,0.00856916]
[1761269710818,0.6726318,110380.0,110370.0,0.18977782]
[1761269711041,0.17912185,110380.0,110370.0,0.18977782]
[1761269711261,0.6721418,110380.0,110370.0,0.00856916]
[1761269712150,0.98445951,110380.0,110370.0,0.00856916]
[1761269712581,0.6721418,110380.0,110370.0,0.00856916]
[1761269712819,0.98445951,110380.0,110370.0,0.00856916]
[1761269713444,0.6721418,110380.0,110370.0,0.00856916]
[1761269714353,0.6718918,110380.0,110370.0,0.00856916]
[1761269716684,0.98376951,110380.0,110370.0,0.00856916]
[1761269718436,0.6714518,110380.0,110370.0,0.00856916]
[1761269718867,0.35913409,110380.0,110370.0,0.18977782]
[1761269719094,0.47191771,110380.0,110370.0,0.18977782]
[1761269719302,0.47177771,110380.0,110370.0,0.18977782]
[1761269719752,0.15946,110380.0,110370.0,0.18977782]
[1761269720383,0.17759412,110380.0,110370.0,0.18977782]
[1761269720985,0.48991183,110380.0,110370.0,0.18977782]
[1761269721182,0.47177771,110380.0,110370.0,0.18977782]
[1761269721392,0.15946,110380.0,110370.0,0.18977782]
[1761269721613,0.15941,110380.0,110370.0,0.18977782]
[1761269722605,0.15934,110380.0,110370.0,0.18977782]
[1761269726543,0.34053224,110380.0,110370.0,0.18977782]
[1761269726748,0.65284995,110380.0,110370.0,0.00856916]
[1761269727355,0.96516766,110380.0,110370.0,0.00856916]
[1761269734178,0.65284995,110380.0,110370.0,0.00856916]
[1761269734383,0.65284995,110380.0,110370.0,0.18977782]
[1761269734804,0.34053224,110380.0,110370.0,0.00856916]
[1761269737107,0.36775158,110380.0,110370.0,0.00856916]
[1761269741922,0.68001566,110380.0,110370.0,0.00856916]
[1761269743480,0.68474776,110380.0,110370.0,0.00856916]
[1761269743964,0.71717134,110380.0,110370.0,0.00856916]
[1761269744444,0.68474776,110380.0,110370.0,0.00856916]
[1761269744682,0.71717134,110380.0,110370.0,0.00856916]
[1761269744924,0.71717134,110380.0,110370.0,0.00656916]
[1761269745444,0.68574776,110380.0,110370.0,0.00656916]
[1761269746627,0.68474776,110380.0,110370.0,0.00656916]
[1761269746839,0.68574776,110380.0,110370.0,0.00656916]
[1761269748775,0.37348368,110380.0,110370.0,0.00656916]
[1761269749000,0.68574776,110380.0,110370.0,0.00656916]
[1761269755944,0.64291733,110380.0,110370.0,0.00656916]
[1761269758862,0.70091733,110380.0,110370.0,0.00656916]
[1761269763144,0.70091733,110380.0,110370.0,0.00656916]
[1761269771367,0.73334091,110380.0,110370.0,0.00656916]
[1761269773211,0.67534091,110380.0,110370.0,0.00656916]
[1761269778156,0.73334091,110380.0,110370.0,0.00656916]
[1761269780330,0.42107683,110380.0,110370.0,0.00656916]
[1761269780559,0.37886792,110380.0,110370.0,0.00656916]
[1761269780764,0.18692434,110380.0,110370.0,0.00656916]
[1761269780898,0.34644434,110380.0,110370.0,0.00656916]
[1761269781311,0.34171224,110380.0,110370.0,0.00656916]
[1761269783114,0.34171224,110380.0,110370.0,0.18777782]
[1761269783306,0.34171224,110380.0,110370.0,0.20589868]
[1761269783307,0.001,110380.0,110370.0,0.20589868]
[1761269783534,0.001,110380.0,110370.0,0.18777782]
[1761269784421,0.02045513,110380.0,110370.0,0.18777782]
[1761269787919,0.20164737,110380.0,110370.0,0.18777782]
[1761269788166,0.20164737,110380.0,110370.0,0.00656916]
[1761269788381,0.51391145,110380.0,110370.0,0.00656916]
[1761269793633,0.20164737,110380.0,110370.0,0.00656916]
[1761269793852,0.51391145,110380.0,110370.0,0.00656916]
[1761269794894,0.82626771,110380.0,110370.0,0.00656916]
[1761269795506,0.82626771,110380.0,110370.0,0.18777782]
[1761269795730,0.02045513,110380.0,110370.0,0.18777782]
[1761269798063,0.001,110380.0,110370.0,0.18777782]
[1761269798277,0.41110809,110390.0,110370.0,0.18777782]
[1761269798584,0.59002039,110390.0,110370.0,0.18777782]
[1761269799591,0.59202039,110390.0,110370.0,0.18777782]
[1761269801910,0.18119224,110380.0,110370.0,0.18777782]
[1761269803156,0.57058809,110390.0,110370.0,0.18777782]
[1761269803369,0.18119224,110380.0,110370.0,0.18777782]
[1761269803566,0.49350241,110380.0,110370.0,0.00656916]
[1761269805643,0.49350241,110380.0,110370.0,0.18777782]
[1761269806323,0.51294687,110380.0,110370.0,0.18777782]
[1761269810176,0.51294687,110380.0,110370.0,0.00656916]
[1761269810894,0.51294687,110380.0,110370.0,0.18777782]
[1761269811118,0.51294687,110380.0,110370.0,0.34725782]
[1761269811341,0.01944446,110380.0,110370.0,0.65956799]
[1761269811762,0.67241046,110390.0,110370.0,0.65956799]
[1761269811996,0.36010029,110390.0,110370.0,0.749387]
[1761269812228,0.67241046,110390.0,110370.0,0.749387]
[1761269813053,0.67241046,110390.0,110380.0,0.18119224]
[1761269814137,0.20062029,110390.0,110380.0,0.18119224]
[1761269815832,0.01944446,110390.0,110380.0,0.18119224]
[1761269816051,0.20967389,110400.0,110390.0,0.18117583]
[1761269816279,0.01947087,110400.0,110390.0,0.493486]
[1761269816493,0.38732204,110410.0,110390.0,0.74278501]
[1761269817124,0.22784204,110410.0,110390.0,0.74278501]
[1761269818638,0.54015221,110410.0,110390.0,0.43047484]
[1761269818848,0.18115942,110400.0,110390.0,0.24929901]
[1761269819058,0.51294046,110400.0,110390.0,0.24925901]
[1761269819448,0.51294046,110400.0,110390.0,0.43043484]
[1761269821572,0.51294046,110400.0,110390.0,0.24925901]
[1761269823409,0.51294046,110400.0,110390.0,0.43043484]
[1761269824416,0.18117583,110390.0,110380.0,0.18119055]
[1761269824616,0.31231017,110390.0,110380.0,0.43044956]
[1761269825595,0.31231017,110390.0,110380.0,0.43244956]
[1761269826018,0.49346959,110400.0,110380.0,0.43244956]
[1761269826243,0.51290259,110400.0,110390.0,0.18117583]
[1761269826445,0.019433,110400.0,110390.0,0.51160358]
[1761269826676,0.52975162,110410.0,110390.0,0.18117583]
[1761269826877,0.54918359,110410.0,110390.0,0.18117583]
[1761269829138,0.23687342,110410.0,110390.0,0.18117583]
[1761269829353,0.54918359,110410.0,110390.0,0.18117583]
[1761269830675,0.54918359,110410.0,110390.0,0.18517583]
[1761269833294,0.01943197,110410.0,110400.0,0.67098553]
[1761269833520,0.35866263,110420.0,110410.0,0.18114301]
[1761269833719,0.67226028,110420.0,110410.0,0.18114301]
[1761269833953,0.67226028,110420.0,110400.0,0.34055942]
[1761269834163,0.49345318,110410.0,110400.0,0.34055942]
[1761269834369,0.49345318,110410.0,110400.0,0.1594]
[1761269834805,0.49350201,110410.0,110400.0,0.34055942]
[1761269838354,0.51292535,110410.0,110400.0,0.34055942]
[1761269838534,0.49350201,110410.0,110400.0,0.34055942]
[1761269838978,0.18119184,110410.0,110400.0,0.34055942]
[1761269839191,0.49350201,110410.0,110400.0,0.34055942]
[1761269839400,0.51292694,110410.0,110400.0,0.34055942]
[1761269840510,0.18114301,110410.0,110400.0,0.1594]
[1761269840725,0.49345318,110410.0,110400.0,0.1594]
[1761269841622,0.52119224,110380.0,110370.0,1e-08]
[1761269841823,0.5212415,110350.0,110340.0,0.004]
[1761269842034,1.72262853,110350.0,110340.0,0.004]
[1761269842252,1.85554435,110350.0,110340.0,0.004]
[1761269842480,1.82717988,110350.0,110340.0,0.004]
[1761269842683,1.82548241,110350.0,110340.0,0.004]
[1761269842893,1.91530142,110350.0,110340.0,0.004]
[1761269843100,1.91530142,110350.0,110340.0,0.00404883]
[1761269843304,1.94936336,110350.0,110340.0,1e-08]
[1761269843510,1.98417054,110350.0,110340.0,1e-08]
[1761269846492,1.95180607,110350.0,110340.0,1e-08]
[1761269847220,0.18129079,110320.0,110310.0,0.004]
[1761269847425,0.984774,110320.0,110310.0,0.004]
[1761269847629,0.96663988,110320.0,110310.0,0.004]
[1761269848079,0.96663988,110320.0,110310.0,0.00605725]
[1761269848499,0.9938737,110320.0,110310.0,0.00605725]
[1761269849138,0.9938737,110320.0,110310.0,0.00705725]
[1761269849346,0.9938737,110320.0,110310.0,0.00805725]
[1761269851135,0.9938737,110320.0,110310.0,0.00705725]
[1761269851991,0.9938737,110320.0,110310.0,0.00605725]
[1761269853499,1.06217712,110320.0,110310.0,0.00605725]
[1761269856744,0.7502489,110320.0,110310.0,0.00605725]
[1761269857401,0.41032296,110320.0,110310.0,0.00605725]
[1761269857623,0.72301508,110320.0,110310.0,0.00605725]
[1761269858065,0.72301508,110320.0,110310.0,0.00558425]
[1761269858294,0.74223361,110320.0,110310.0,0.00558425]
[1761269858516,0.42954149,110320.0,110310.0,0.00558425]
[1761269858728,0.74223361,110320.0,110310.0,0.00558425]
[1761269864192,0.42954149,110320.0,110310.0,0.00558425]
[1761269864403,0.74223361,110320.0,110310.0,0.00558425]
[1761269864855,0.74203361,110320.0,110310.0,0.00558425]
[1761269865679,0.77439808,110320.0,110310.0,0.00558425]
[1761269868133,0.77439808,110320.0,110310.0,0.00515855]
[1761269868504,0.79058031,110320.0,110310.0,0.00515855]
[1761269870519,0.18130722,110310.0,110300.0,0.18152254]
[1761269870716,0.26708601,110310.0,110300.0,0.18152254]
[1761269870923,0.24895189,110310.0,110300.0,0.18152254]
[1761269871368,0.26525678,110310.0,110300.0,0.10804633]
[1761269871982,0.24915279,110310.0,110300.0,0.10904633]
[1761269872204,0.24915279,110310.0,110300.0,0.10804633]
[1761269872621,0.06784557,110310.0,110300.0,0.10904633]
[1761269872842,0.10027591,110310.0,110300.0,0.58213845]
[1761269873071,0.01921853,110310.0,110300.0,0.72899746]
[1761269875191,0.01921853,110310.0,110300.0,0.72999746]
[1761269876149,0.01921853,110310.0,110300.0,0.73134046]
[1761269877919,4.875e-05,110320.0,110310.0,0.18130722]
[1761269878091,0.01947889,110320.0,110310.0,0.60194907]
[1761269878294,4.875e-05,110320.0,110310.0,0.58381835]
[1761269878744,4.875e-05,110320.0,110310.0,1.27269275]
[1761269879085,4.875e-05,110320.0,110310.0,0.96000063]
[1761269879808,4.875e-05,110320.0,110310.0,0.96200063]
[1761269880467,4.875e-05,110320.0,110310.0,0.96100063]
[1761269880709,4.875e-05,110320.0,110310.0,0.96200063]
[1761269881723,4.875e-05,110320.0,110310.0,0.96100063]
[1761269881924,4.875e-05,110320.0,110310.0,0.96300063]
[1761269884400,4.875e-05,110320.0,110310.0,1.27569275]
[1761269884618,4.875e-05,110320.0,110310.0,0.96300063]
[1761269884855,4.875e-05,110320.0,110310.0,1.27569275]
[1761269885062,4.875e-05,110320.0,110310.0,0.96300063]
[1761269887880,4.875e-05,110320.0,110310.0,1.27569275]
[1761269889237,4.875e-05,110320.0,110310.0,1.27269275]
[1761269889448,4.875e-05,110320.0,110310.0,0.64830851]
[1761269889674,4.875e-05,110320.0,110310.0,1.27669275]
[1761269897442,4.875e-05,110320.0,110310.0,1.27569275]
[1761269897657,4.875e-05,110320.0,110310.0,1.27369275]
[1761269897909,4.875e-05,110320.0,110310.0,1.27669275]
[1761269898566,4.875e-05,110320.0,110310.0,1.63815708]
[1761269898774,4.875e-05,110320.0,110310.0,1.32546496]
[1761269900049,4.875e-05,110320.0,110310.0,1.32446496]
[1761269900523,4.875e-05,110320.0,110310.0,1.63815708]
[1761269900739,4.875e-05,110320.0,110310.0,1.63515708]
[1761269900961,4.875e-05,110320.0,110310.0,1.63815708]
[1761269901940,4.875e-05,110320.0,110310.0,1.32546496]
[1761269902368,4.875e-05,110320.0,110310.0,1.63815708]
[1761269903496,4.875e-05,110320.0,110310.0,1.58938487]
[1761269903727,4.875e-05,110320.0,110310.0,1.80362726]
[1761269904365,4.875e-05,110320.0,110310.0,1.80262726]
[1761269904788,4.875e-05,110320.0,110310.0,1.84915172]
[1761269905002,4.875e-05,110320.0,110310.0,1.78790933]
[1761269905419,4.875e-05,110320.0,110310.0,1.85290547]
[1761269906984,4.875e-05,110320.0,110310.0,1.81133489]
[1761269907633,4.875e-05,110320.0,110310.0,1.80933489]
[1761269908035,4.875e-05,110320.0,110310.0,1.80733489]
[1761269908454,4.875e-05,110320.0,110310.0,1.81233489]
[1761269908938,0.00243755,110370.0,110360.0,0.18122508]
[1761269909165,0.00243755,110370.0,110360.0,1.15999154]
[1761269909418,0.00243755,110370.0,110360.0,1.14186904]
[1761269910492,0.00243755,110370.0,110360.0,1.14286904]
[1761269911144,0.00243755,110370.0,110360.0,0.83217692]
[1761269911369,0.00243755,110370.0,110360.0,1.14486904]
[1761269913912,0.00243755,110370.0,110360.0,1.1541496]
[1761269914540,0.00243755,110370.0,110360.0,0.27417692]
[1761269914758,0.00243755,110370.0,110360.0,0.43413692]
[1761269916502,0.49859474,110390.0,110360.0,0.43413692]
[1761269916701,0.1811948,110380.0,110370.0,0.18120866]
[1761269916929,0.49346074,110380.0,110370.0,0.18120866]
[1761269917690,0.31226594,110380.0,110370.0,0.18120866]
[1761269918148,0.31226594,110380.0,110370.0,0.18220866]
[1761269918759,0.02721731,110390.0,110380.0,0.18119224]
[1761269920044,0.20839314,110390.0,110380.0,0.18119224]
[1761269920454,0.52065908,110390.0,110380.0,0.18119224]
[1761269921333,0.52065908,110390.0,110380.0,0.34127224]
[1761269921565,0.20839314,110390.0,110380.0,0.34127224]
[1761269921792,0.02721731,110390.0,110380.0,0.34127224]
[1761269922249,0.20839314,110390.0,110380.0,0.34127224]
[1761269923130,0.52065908,110390.0,110380.0,0.34127224]
[1761269923803,0.20839314,110390.0,110380.0,0.34127224]
[1761269926279,0.22777266,110390.0,110380.0,0.16008]
[1761269926488,0.5400386,110390.0,110370.0,0.18120866]
[1761269926722,0.5400386,110390.0,110370.0,0.34124866]
[1761269927569,0.49345818,110380.0,110370.0,0.18120866]
[1761269927792,0.49345818,110380.0,110370.0,0.34124866]
[1761269928903,0.49345818,110380.0,110370.0,0.34224866]
[1761269929964,0.49345818,110380.0,110370.0,0.34324866]
[1761269933091,0.49380082,110380.0,110370.0,0.34324866]
[1761269933720,0.31260858,110380.0,110370.0,0.34324866]
[1761269933928,0.00034264,110380.0,110370.0,0.34324866]
[1761269934139,0.00034264,110380.0,110370.0,0.6555146]
[1761269935024,0.00534264,110380.0,110370.0,0.6555146]
[1761269935926,0.00534264,110380.0,110370.0,0.34324866]
[1761269939231,0.00534264,110380.0,110370.0,0.6555146]
[1761269940050,0.00534264,110380.0,110370.0,0.74533361]
[1761269941490,0.00534264,110380.0,110370.0,0.43306767]
[1761269942539,0.00534264,110380.0,110370.0,0.74533361]
[1761269944006,0.00534264,110380.0,110370.0,0.43306767]
[1761269944838,0.00534264,110380.0,110370.0,0.74533361]
[1761269945447,0.00534264,110380.0,110370.0,0.74933361]
[1761269946671,0.00534264,110380.0,110370.0,0.43706767]
[1761269949150,0.00534264,110380.0,110370.0,0.74933361]
[1761269949370,0.00534264,110380.0,110370.0,1.09778183]
[1761269949586,0.00534264,110380.0,110370.0,1.43778183]
[1761269950782,0.00534264,110380.0,110370.0,1.43878183]
[1761269952223,0.00534264,110380.0,110370.0,1.43778183]
[1761269952401,0.00534264,110380.0,110370.0,1.43978183]
[1761269954282,0.00534264,110380.0,110370.0,0.81524995]
[1761269954626,0.00534264,110380.0,110370.0,1.43978183]
[1761269964687,0.00534264,110380.0,110370.0,1.75204777]
[1761269964913,0.00534264,110380.0,110370.0,1.43978183]
[1761269965792,0.00534264,110380.0,110370.0,1.43578183]
[1761269966202,0.00534264,110380.0,110370.0,1.43978183]
[1761269968156,0.012,110400.0,110390.0,0.84188999]
[1761269968365,0.012,110400.0,110390.0,1.149389]
[1761269968598,0.012,110400.0,110390.0,0.83712306]
[1761269968822,0.01268512,110400.0,110390.0,1.149389]
[1761269969003,0.01268512,110400.0,110390.0,1.15847596]
[1761269969427,0.01268512,110400.0,110390.0,1.15947596]
[1761269969804,0.01268512,110400.0,110390.0,1.16047596]
[1761269970399,0.01268512,110400.0,110390.0,1.50047596]
[1761269970613,0.01268512,110400.0,110390.0,1.49947596]
[1761269971034,0.01268512,110400.0,110390.0,1.50047596]
[1761269971247,0.01268512,110400.0,110390.0,1.49947596]
[1761269971658,0.01268512,110400.0,110390.0,1.50147596]
[1761269972075,0.01268512,110400.0,110390.0,1.492389]
[1761269972283,0.01268512,110400.0,110390.0,1.18012306]
[1761269972511,0.01268512,110400.0,110390.0,1.18940658]
[1761269972714,0.01268512,110400.0,110390.0,1.18012306]
[1761269975065,0.01268512,110400.0,110390.0,1.492389]
[1761269975583,0.01268512,110400.0,110390.0,1.50128843]
[1761269978290,0.01268512,110400.0,110390.0,1.18902249]
[1761269978714,0.01268512,110400.0,110390.0,1.18012306]
[1761269978958,0.01268512,110400.0,110390.0,1.1798527]
[1761269980615,0.01268512,110400.0,110390.0,0.80977712]
[1761269980821,0.01268512,110400.0,110390.0,1.1797727]
[1761269987434,0.01268512,110400.0,110390.0,0.86777712]
[1761269987649,0.01268512,110400.0,110390.0,1.1797727]
[1761269988100,0.01268512,110400.0,110390.0,1.1787727]
[1761269988538,0.01268512,110400.0,110390.0,1.1767727]
[1761269989018,0.01268512,110400.0,110390.0,1.1797727]
[1761269989924,0.01268512,110400.0,110390.0,1.1807727]
[1761270000708,0.01268512,110400.0,110390.0,1.49276828]
[1761270000923,1e-08,110400.0,110390.0,1.54149982]
[1761270001115,1e-08,110400.0,110390.0,1.55753722]
[1761270001331,1e-08,110400.0,110390.0,1.57378107]
[1761270002326,1e-08,110400.0,110390.0,1.57078107]
[1761270002572,1e-08,110400.0,110390.0,1.56978107]
[1761270002749,1e-08,110400.0,110390.0,1.57378107]
[1761270004184,1e-08,110400.0,110390.0,1.50880568]
[1761270006052,1e-08,110400.0,110390.0,1.55760176]
[1761270007321,1e-08,110400.0,110390.0,1.55460176]
[1761270007529,1e-08,110400.0,110390.0,1.55360176]
[1761270007753,1e-08,110400.0,110390.0,1.55660176]
[1761270008849,1e-08,110400.0,110390.0,1.55760176]
[1761270010548,1e-08,110400.0,110390.0,1.70660176]
[1761270011298,1e-08,110420.0,110410.0,0.21732529]
[1761270011552,0.004,110430.0,110420.0,0.5211266]
[1761270011553,1e-08,110430.0,110420.0,0.5211266]
[1761270011807,1e-08,110430.0,110420.0,1.23493677]
[1761270012055,1e-08,110430.0,110420.0,1.23893677]
[1761270012564,0.00014667,110430.0,110420.0,1.23893677]
[1761270013044,0.00014667,110430.0,110420.0,1.24193677]
[1761270013457,0.00014667,110430.0,110420.0,1.24293677]
[1761270014710,0.00014667,110430.0,110420.0,1.27911905]
[1761270018054,0.00014667,110430.0,110420.0,0.96712347]
[1761270018482,0.00117399,110430.0,110420.0,1.27911905]
[1761270019625,0.00117399,110430.0,110420.0,0.96712347]
[1761270020264,0.00117399,110430.0,110420.0,1.27911905]
[1761270021543,0.00117399,110430.0,110420.0,0.96712347]
[1761270021926,0.00117399,110430.0,110420.0,1.27911905]
[1761270023987,0.19009716,110470.0,110460.0,0.18105631]
[1761270024216,0.1905854,110470.0,110460.0,0.34057631]
[1761270024429,0.19195447,110470.0,110460.0,0.34057631]
[1761270025509,0.00185731,110470.0,110460.0,0.34057631]
[1761270032299,0.00185731,110470.0,110460.0,0.18105631]
[1761270032498,0.00185731,110470.0,110460.0,0.34057631]
[1761270032892,0.00185731,110470.0,110460.0,0.18105631]
[1761270033096,0.00185731,110470.0,110460.0,0.34057631]
[1761270033302,0.51303163,110470.0,110450.0,0.18107741]
[1761270033527,0.49352844,110470.0,110460.0,0.15952]
[1761270033698,0.51298156,110470.0,110460.0,0.15952]
[1761270034088,0.51298156,110470.0,110450.0,0.27089642]
[1761270034284,0.51298156,110470.0,110460.0,0.15952]
[1761270034759,0.18106101,110460.0,110450.0,0.18107741]
[1761270034979,0.53064673,110460.0,110450.0,0.15952]
[1761270035180,0.51251261,110460.0,110450.0,0.15952]
[1761270038721,0.51339358,110460.0,110450.0,0.15952]
[1761270040031,0.51339358,110460.0,110440.0,0.19012294]
[1761270040233,0.51236668,110460.0,110450.0,0.15952]
[1761270041241,0.51236668,110460.0,110450.0,0.34059741]
[1761270041242,0.00640354,110460.0,110450.0,0.34059741]
[1761270041449,0.31184965,110460.0,110450.0,0.34059741]
[1761270043287,0.49291066,110460.0,110450.0,0.34059741]
[1761270044266,0.18106101,110460.0,110450.0,0.34059741]
[1761270044469,0.49291066,110460.0,110450.0,0.34059741]
[1761270045752,0.31287655,110460.0,110450.0,0.34059741]
[1761270045972,0.0010269,110460.0,110450.0,0.65244706]
[1761270046162,0.0010269,110460.0,110450.0,0.34059741]
[1761270046371,0.0010269,110460.0,110450.0,0.74226607]
[1761270047810,0.0010269,110460.0,110450.0,0.74626607]
[1761270048887,0.0010269,110460.0,110450.0,0.43441642]
[1761270052791,0.0010269,110460.0,110450.0,0.74626607]
[1761270053004,0.0010269,110460.0,110450.0,0.43441642]
[1761270058695,0.0010269,110460.0,110450.0,0.74626607]
[1761270059134,0.0010269,110460.0,110450.0,0.80422607]
[1761270060168,0.0010269,110460.0,110450.0,0.49237642]
[1761270074705,0.31287655,110460.0,110450.0,0.18507741]
[1761270074921,0.80578721,110460.0,110450.0,0.004]
[1761270075347,0.18208791,110460.0,110450.0,0.16348]
[1761270075549,0.80578721,110460.0,110450.0,0.16348]
[1761270075750,0.80578721,110460.0,110450.0,0.004]
[1761270075958,0.85248136,110460.0,110450.0,0.004]
[1761270076532,0.22878206,110460.0,110450.0,0.004]
[1761270076763,0.85248136,110460.0,110450.0,0.004]
[1761270077892,0.22878206,110460.0,110450.0,0.004]
[1761270078097,0.85248136,110460.0,110450.0,0.004]
[1761270078502,0.22878206,110460.0,110450.0,0.004]
[1761270078715,0.85248136,110460.0,110450.0,0.004]
[1761270080540,0.91911004,110460.0,110450.0,0.004]
[1761270081363,0.92383893,110460.0,110450.0,0.004]
[1761270082559,1.01365794,110460.0,110450.0,0.004]
[1761270086144,0.23351095,110460.0,110450.0,0.004]
[1761270086370,0.5453606,110460.0,110450.0,0.004]
[1761270086798,0.85721025,110460.0,110450.0,0.004]
[1761270088206,0.5453606,110460.0,110450.0,0.004]
[1761270091710,0.23351095,110460.0,110450.0,0.004]
[1761270091916,0.5453606,110460.0,110450.0,0.004]
[1761270092532,0.23351095,110460.0,110450.0,0.004]
[1761270092762,0.5453606,110460.0,110450.0,0.004]
[1761270093215,0.23351095,110460.0,110450.0,0.004]
[1761270093397,0.5453606,110460.0,110450.0,0.004]
[1761270098770,0.23351095,110460.0,110450.0,0.004]
[1761270099393,0.54535984,110460.0,110450.0,0.004]
[1761270103503,0.85720873,110460.0,110450.0,0.004]
[1761270103679,0.54535984,110460.0,110450.0,0.004]
[1761270104290,0.57779018,110460.0,110450.0,0.004]
[1761270106947,0.64646177,110460.0,110450.0,0.004]
[1761270108041,0.33461288,110460.0,110450.0,0.004]
[1761270108246,0.64646177,110460.0,110450.0,0.004]
[1761270108895,0.77351143,110460.0,110450.0,0.004]
[1761270113084,0.39299095,110460.0,110450.0,0.18507741]
[1761270113312,0.38826206,110460.0,110450.0,0.18507741]
[1761270116506,0.70011095,110460.0,110450.0,0.18507741]
[1761270118661,0.38826206,110460.0,110450.0,0.18507741]